[Event "Late-Titled-Tuesday-Blitz-February-13-2024"]
[Site "Chess.com"]
[Date "2024.02.13"]
[Round "2"]
[White "cthulhuuu"]
[Black "Flawless_Fighter"]
[Result "1-0"]
[WhiteElo "2465"]
[BlackElo "2735"]
[TimeControl "180+1"]
[EndTime "14:18:54 PST"]
[Termination "cthulhuuu won by checkmate"]

1. e4 {[%clk 0:02:59.9]} 1... c5 {[%clk 0:02:58.9]} 2. Nf3 {[%clk 0:02:53.9]}
2... d6 {[%clk 0:02:59]} 3. g3 {[%clk 0:02:53]} 3... Nc6 {[%clk 0:02:56.7]} 4.
Bg2 {[%clk 0:02:48.8]} 4... g6 {[%clk 0:02:56.2]} 5. O-O {[%clk 0:02:46.4]} 5...
Bg7 {[%clk 0:02:56]} 6. d3 {[%clk 0:02:42.1]} 6... Nf6 {[%clk 0:02:51]} 7. Re1
{[%clk 0:02:38.3]} 7... O-O {[%clk 0:02:51.1]} 8. e5 {[%clk 0:02:33.3]} 8...
dxe5 {[%clk 0:02:41.9]} 9. Nxe5 {[%clk 0:02:34.2]} 9... Nxe5 {[%clk 0:02:42.7]}
10. Rxe5 {[%clk 0:02:34.8]} 10... Bg4 {[%clk 0:02:40.6]} 11. Qe1 {[%clk
0:02:34.9]} 11... Qb6 {[%clk 0:02:00.9]} 12. Nc3 {[%clk 0:02:24.7]} 12... Rac8
{[%clk 0:01:35.2]} 13. Rxe7 {[%clk 0:01:57.8]} 13... Rfe8 {[%clk 0:01:32.8]} 14.
Nd5 {[%clk 0:01:57.8]} 14... Qd8 {[%clk 0:01:09.1]} 15. Bg5 {[%clk 0:01:08.7]}
15... Nxd5 {[%clk 0:00:56.7]} 16. Rxe8+ {[%clk 0:01:08.7]} 16... Qxe8 {[%clk
0:00:57.6]} 17. Bxd5 {[%clk 0:01:05.9]} 17... b6 {[%clk 0:00:53.6]} 18. c3
{[%clk 0:01:01.1]} 18... h6 {[%clk 0:00:52.7]} 19. Bf4 {[%clk 0:00:47.4]} 19...
Qd7 {[%clk 0:00:52]} 20. Bg2 {[%clk 0:00:42.2]} 20... Qxd3 {[%clk 0:00:46.7]}
21. h3 {[%clk 0:00:38.4]} 21... Bf3 {[%clk 0:00:43.1]} 22. Bxf3 {[%clk
0:00:38.7]} 22... Qxf3 {[%clk 0:00:43.2]} 23. Rd1 {[%clk 0:00:39.3]} 23... Qc6
{[%clk 0:00:35.4]} 24. Rd6 {[%clk 0:00:36.7]} 24... Re8 {[%clk 0:00:32.2]} 25.
Rxc6 {[%clk 0:00:29.2]} 25... Rxe1+ {[%clk 0:00:31.9]} 26. Kg2 {[%clk
0:00:30.1]} 26... Re2 {[%clk 0:00:14.5]} 27. Rc8+ {[%clk 0:00:30.3]} 27... Kh7
{[%clk 0:00:15.2]} 28. Rc7 {[%clk 0:00:30.8]} 28... g5 {[%clk 0:00:15.7]} 29.
Bd6 {[%clk 0:00:28.4]} 29... Kg6 {[%clk 0:00:12.1]} 30. Rxa7 {[%clk 0:00:25.9]}
30... Rxb2 {[%clk 0:00:12.7]} 31. Ra6 {[%clk 0:00:21.5]} 31... Bxc3 {[%clk
0:00:11.1]} 32. Bxc5 {[%clk 0:00:21.7]} 32... f6 {[%clk 0:00:08.6]} 33. Bxb6
{[%clk 0:00:18.9]} 33... Be1 {[%clk 0:00:07.1]} 34. Bd4 {[%clk 0:00:17.9]} 34...
Rd2 {[%clk 0:00:03.5]} 35. Rxf6+ {[%clk 0:00:17.2]} 35... Kh7 {[%clk 0:00:03.1]}
36. Rf7+ {[%clk 0:00:07.2]} 36... Kg6 {[%clk 0:00:03]} 37. Rg7+ {[%clk 0:00:06]}
37... Kf5 {[%clk 0:00:03.5]} 38. Be3 {[%clk 0:00:06]} 38... Rxa2 {[%clk
0:00:03.4]} 39. g4+ {[%clk 0:00:06.3]} 39... Ke4 {[%clk 0:00:03]} 40. Re7+
{[%clk 0:00:06.2]} 40... Kd3 {[%clk 0:00:02]} 41. Re6 {[%clk 0:00:06.1]} 41...
Bc3 {[%clk 0:00:02.2]} 42. Rxh6 {[%clk 0:00:05.5]} 42... Ke4 {[%clk 0:00:02.4]}
43. Rg6 {[%clk 0:00:05.1]} 43... Be1 {[%clk 0:00:01.4]} 44. Rxg5 {[%clk
0:00:05.3]} 44... Re2 {[%clk 0:00:01.7]} 45. Rg6 {[%clk 0:00:05.1]} 45... Rc2
{[%clk 0:00:01.4]} 46. Re6+ {[%clk 0:00:05.6]} 46... Kd5 {[%clk 0:00:02.1]} 47.
Re8 {[%clk 0:00:05.8]} 47... Bb4 {[%clk 0:00:02.6]} 48. g5 {[%clk 0:00:04.7]}
48... Rc6 {[%clk 0:00:02.3]} 49. h4 {[%clk 0:00:04]} 49... Rg6 {[%clk
0:00:02.1]} 50. h5 {[%clk 0:00:04.3]} 50... Rg7 {[%clk 0:00:02.6]} 51. h6 {[%clk
0:00:04.3]} 51... Rd7 {[%clk 0:00:02.8]} 52. h7 {[%clk 0:00:04.6]} 52... Bc3
{[%clk 0:00:03.7]} 53. h8=Q {[%clk 0:00:04.2]} 53... Bxh8 {[%clk 0:00:04.5]} 54.
Rxh8 {[%clk 0:00:05]} 54... Ke6 {[%clk 0:00:05.4]} 55. Rg8 {[%clk 0:00:04.4]}
55... Kf5 {[%clk 0:00:06.1]} 56. Kf3 {[%clk 0:00:02.7]} 56... Rd5 {[%clk
0:00:06.2]} 57. Ra8 {[%clk 0:00:02.7]} 57... Kg6 {[%clk 0:00:06.1]} 58. Rc8
{[%clk 0:00:03]} 58... Rd6 {[%clk 0:00:06.2]} 59. Rc5 {[%clk 0:00:03.3]} 59...
Re6 {[%clk 0:00:06.6]} 60. Kg4 {[%clk 0:00:03.4]} 60... Re4+ {[%clk 0:00:06.9]}
61. Bf4 {[%clk 0:00:03.9]} 61... Re6 {[%clk 0:00:06.6]} 62. Rd5 {[%clk
0:00:04.6]} 62... Rc6 {[%clk 0:00:07]} 63. Rd6+ {[%clk 0:00:05]} 63... Rxd6
{[%clk 0:00:07.7]} 64. Bxd6 {[%clk 0:00:05.9]} 64... Kh7 {[%clk 0:00:08.3]} 65.
f4 {[%clk 0:00:06.3]} 65... Kg6 {[%clk 0:00:08.9]} 66. f5+ {[%clk 0:00:06.9]}
66... Kh7 {[%clk 0:00:09.8]} 67. g6+ {[%clk 0:00:07.3]} 67... Kh6 {[%clk
0:00:09.9]} 68. Bf8# {[%clk 0:00:06.6]} 1-0

[Event "Late-Titled-Tuesday-Blitz-February-13-2024"]
[Site "Chess.com"]
[Date "2024.02.13"]
[Round "2"]
[White "MetiForce"]
[Black "DanylaBagrov"]
[Result "1-0"]
[WhiteElo "2860"]
[BlackElo "2559"]
[TimeControl "180+1"]
[EndTime "14:18:56 PST"]
[Termination "MetiForce won by resignation"]

1. d4 {[%clk 0:02:58.5]} 1... f5 {[%clk 0:02:58]} 2. Qd3 {[%clk 0:02:56.8]} 2...
d6 {[%clk 0:02:51.9]} 3. Nc3 {[%clk 0:02:52.4]} 3... Nf6 {[%clk 0:02:47.8]} 4.
g3 {[%clk 0:02:50.7]} 4... e5 {[%clk 0:02:17.8]} 5. Bg2 {[%clk 0:02:43.7]} 5...
e4 {[%clk 0:02:17]} 6. Qd1 {[%clk 0:02:40]} 6... Be7 {[%clk 0:02:15.1]} 7. f3
{[%clk 0:02:40.1]} 7... d5 {[%clk 0:02:08.9]} 8. Bg5 {[%clk 0:02:39.9]} 8... O-O
{[%clk 0:02:05.7]} 9. Nh3 {[%clk 0:02:40]} 9... Be6 {[%clk 0:01:37.9]} 10. O-O
{[%clk 0:02:36.5]} 10... h6 {[%clk 0:01:35.2]} 11. Bxf6 {[%clk 0:02:36.5]} 11...
Bxf6 {[%clk 0:01:36.1]} 12. Nf4 {[%clk 0:02:32.3]} 12... Bf7 {[%clk 0:01:36.7]}
13. fxe4 {[%clk 0:02:32.3]} 13... fxe4 {[%clk 0:01:36.4]} 14. e3 {[%clk
0:02:32.4]} 14... g5 {[%clk 0:01:22.7]} 15. Qg4 {[%clk 0:02:27.9]} 15... Bg7
{[%clk 0:01:08.7]} 16. Ne6 {[%clk 0:01:56.1]} 16... Qd7 {[%clk 0:01:02.9]} 17.
Bh3 {[%clk 0:01:56]} 17... Nc6 {[%clk 0:00:50.6]} 18. Nxf8 {[%clk 0:01:49.2]}
18... Qxg4 {[%clk 0:00:47.2]} 19. Bxg4 {[%clk 0:01:50.1]} 19... Bxf8 {[%clk
0:00:47.1]} 20. a3 {[%clk 0:01:41.8]} 20... Na5 {[%clk 0:00:46]} 21. b3 {[%clk
0:01:33.3]} 21... c5 {[%clk 0:00:44.7]} 22. Rf5 {[%clk 0:00:52.9]} 22... cxd4
{[%clk 0:00:27.5]} 23. Nxd5 {[%clk 0:00:52.6]} 23... Nc6 {[%clk 0:00:22.3]} 24.
Raf1 {[%clk 0:00:52]} 24... Bg6 {[%clk 0:00:16.9]} 25. Rf6 {[%clk 0:00:48.7]}
25... Kg7 {[%clk 0:00:17.3]} 26. Nc7 {[%clk 0:00:47]} 26... Be7 {[%clk
0:00:14.1]} 27. Rxg6+ {[%clk 0:00:46]} 27... Kxg6 {[%clk 0:00:13]} 28. Nxa8
{[%clk 0:00:46.9]} 28... dxe3 {[%clk 0:00:13.3]} 29. Nc7 {[%clk 0:00:46.9]}
29... Bc5 {[%clk 0:00:10.9]} 30. Be2 {[%clk 0:00:42.7]} 30... Nd4 {[%clk
0:00:10.3]} 31. Re1 {[%clk 0:00:43.2]} 31... Nxc2 {[%clk 0:00:10.3]} 32. Rc1
{[%clk 0:00:43.3]} 32... Nd4 {[%clk 0:00:09.1]} 33. Kf1 {[%clk 0:00:40.5]} 33...
Bxa3 {[%clk 0:00:08.8]} 34. Rc3 {[%clk 0:00:37.9]} 34... Bb2 {[%clk 0:00:08.8]}
35. Rxe3 {[%clk 0:00:37.4]} 35... Kf5 {[%clk 0:00:07.3]} 36. Nb5 {[%clk
0:00:30.4]} 36... Nc2 {[%clk 0:00:06.4]} 37. Nd6+ {[%clk 0:00:27.5]} 37... Ke5
{[%clk 0:00:05.4]} 38. Rxe4+ {[%clk 0:00:20]} 38... Kxd6 {[%clk 0:00:06]} 39.
Bg4 {[%clk 0:00:15.5]} 39... Be5 {[%clk 0:00:05.1]} 40. Bd1 {[%clk 0:00:12]}
40... Nd4 {[%clk 0:00:05.8]} 41. Kf2 {[%clk 0:00:11.4]} 41... a5 {[%clk
0:00:06.4]} 42. Ke3 {[%clk 0:00:11.2]} 42... Nf5+ {[%clk 0:00:07.2]} 43. Kd3
{[%clk 0:00:11.4]} 43... Ne7 {[%clk 0:00:07.9]} 44. Kc4 {[%clk 0:00:11.3]} 44...
Bb2 {[%clk 0:00:04.3]} 45. Re2 {[%clk 0:00:11.1]} 45... Bc1 {[%clk 0:00:03.7]}
46. Rc2 {[%clk 0:00:11]} 46... Be3 {[%clk 0:00:04.3]} 47. Bf3 {[%clk 0:00:11.2]}
47... b6 {[%clk 0:00:04]} 48. Re2 {[%clk 0:00:11.8]} 48... Bg1 {[%clk
0:00:04.1]} 49. Rg2 {[%clk 0:00:10.9]} 49... Be3 {[%clk 0:00:03.7]} 50. Re2
{[%clk 0:00:11.4]} 50... Bc5 {[%clk 0:00:04.2]} 51. Bg4 {[%clk 0:00:11.9]} 51...
Nc6 {[%clk 0:00:03.5]} 52. Re6+ {[%clk 0:00:12.2]} 52... Kc7 {[%clk 0:00:04.3]}
53. Bd1 {[%clk 0:00:08.5]} 53... Nd4 {[%clk 0:00:04.7]} 54. Rxh6 {[%clk
0:00:08.6]} 54... Nf5 {[%clk 0:00:04.9]} 55. Re6 {[%clk 0:00:07.7]} 55... Kd7
{[%clk 0:00:05.5]} 56. Re5 {[%clk 0:00:07.4]} 56... Ne3+ {[%clk 0:00:06.2]} 57.
Kd3 {[%clk 0:00:03.9]} 57... Nxd1 {[%clk 0:00:06.1]} 58. Rxg5 {[%clk 0:00:04.6]}
58... Nf2+ {[%clk 0:00:05.6]} 59. Kc4 {[%clk 0:00:04.5]} 59... Ne4 {[%clk
0:00:05.4]} 60. Rg6 {[%clk 0:00:04.9]} 60... Nd2+ {[%clk 0:00:05.7]} 61. Kc3
{[%clk 0:00:04.4]} 61... Bb4+ {[%clk 0:00:05.7]} 62. Kc2 {[%clk 0:00:04.3]}
62... Kc7 {[%clk 0:00:06]} 63. h4 {[%clk 0:00:04.4]} 63... Nf3 {[%clk
0:00:06.8]} 64. h5 {[%clk 0:00:04.7]} 64... Nd4+ {[%clk 0:00:07.7]} 65. Kb2
{[%clk 0:00:04.7]} 65... Nf5 {[%clk 0:00:08.4]} 66. h6 {[%clk 0:00:04.6]} 66...
Bc5 {[%clk 0:00:08]} 67. h7 {[%clk 0:00:04.7]} 67... Bd4+ {[%clk 0:00:08.7]} 68.
Kc2 {[%clk 0:00:05.2]} 68... b5 {[%clk 0:00:07.6]} 69. g4 {[%clk 0:00:05.6]}
69... Ne3+ {[%clk 0:00:07.4]} 70. Kd3 {[%clk 0:00:05.9]} 70... a4 {[%clk
0:00:02.2]} 71. Kxd4 {[%clk 0:00:06.3]} 71... a3 {[%clk 0:00:02.3]} 72. h8=Q
{[%clk 0:00:05.9]} 72... a2 {[%clk 0:00:02.7]} 73. Qh7+ {[%clk 0:00:06.7]} 1-0

[Event "Late-Titled-Tuesday-Blitz-February-13-2024"]
[Site "Chess.com"]
[Date "2024.02.13"]
[Round "2"]
[White "AsterPhoenix"]
[Black "Zapateado"]
[Result "1/2-1/2"]
[WhiteElo "2641"]
[BlackElo "2358"]
[TimeControl "180+1"]
[EndTime "14:18:56 PST"]
[Termination "Game drawn by stalemate"]

1. e4 {[%clk 0:03:00.9]} 1... c5 {[%clk 0:02:59.2]} 2. b4 {[%clk 0:03:00.4]}
2... cxb4 {[%clk 0:02:58.9]} 3. a3 {[%clk 0:03:01]} 3... bxa3 {[%clk 0:02:59]}
4. Nxa3 {[%clk 0:03:00]} 4... Nc6 {[%clk 0:02:59.1]} 5. d4 {[%clk 0:03:00.3]}
5... d5 {[%clk 0:02:57.6]} 6. exd5 {[%clk 0:03:00]} 6... Qxd5 {[%clk 0:02:56.9]}
7. Nb5 {[%clk 0:02:59.6]} 7... Qd8 {[%clk 0:02:50.5]} 8. d5 {[%clk 0:02:54.2]}
8... Ne5 {[%clk 0:02:12.5]} 9. Bf4 {[%clk 0:02:53.6]} 9... f6 {[%clk 0:02:09.7]}
10. Nf3 {[%clk 0:02:47.7]} 10... Bg4 {[%clk 0:01:59.4]} 11. Be2 {[%clk 0:02:37]}
11... Bxf3 {[%clk 0:01:51.6]} 12. Bxf3 {[%clk 0:02:36.5]} 12... a6 {[%clk
0:01:45.6]} 13. Nd4 {[%clk 0:02:32.9]} 13... Qd6 {[%clk 0:01:17.9]} 14. O-O
{[%clk 0:02:30.8]} 14... g6 {[%clk 0:01:07.3]} 15. c4 {[%clk 0:01:54]} 15... Bh6
{[%clk 0:00:58.6]} 16. Bg3 {[%clk 0:01:54.1]} 16... Rc8 {[%clk 0:00:49.6]} 17.
Qb3 {[%clk 0:01:35]} 17... Qd8 {[%clk 0:00:09.4]} 18. Rfe1 {[%clk 0:01:19.8]}
18... Kf7 {[%clk 0:00:08.1]} 19. Bxe5 {[%clk 0:01:08.1]} 19... fxe5 {[%clk
0:00:09]} 20. Ne6 {[%clk 0:01:07.7]} 20... Qd7 {[%clk 0:00:03.9]} 21. Bg4 {[%clk
0:01:08.2]} 21... Qd6 {[%clk 0:00:01.8]} 22. c5 {[%clk 0:01:07.4]} 22... Rxc5
{[%clk 0:00:01.1]} 23. Nxc5 {[%clk 0:01:08.3]} 23... Qxc5 {[%clk 0:00:01.4]} 24.
d6+ {[%clk 0:01:07.7]} 24... Kg7 {[%clk 0:00:02]} 25. d7 {[%clk 0:01:07.4]}
25... Nf6 {[%clk 0:00:02.3]} 26. Be6 {[%clk 0:01:03.7]} 26... Rd8 {[%clk
0:00:02.3]} 27. Rad1 {[%clk 0:01:04.1]} 27... Qc6 {[%clk 0:00:02.2]} 28. h3
{[%clk 0:01:03.6]} 28... b5 {[%clk 0:00:02.5]} 29. Rxe5 {[%clk 0:01:01.2]} 29...
Bf4 {[%clk 0:00:02.8]} 30. Ree1 {[%clk 0:00:57.5]} 30... Bd6 {[%clk 0:00:02]}
31. Rc1 {[%clk 0:00:54]} 31... Qb6 {[%clk 0:00:01.5]} 32. Rc8 {[%clk 0:00:50]}
32... Rxd7 {[%clk 0:00:01.2]} 33. Bxd7 {[%clk 0:00:49.7]} 33... Nxd7 {[%clk
0:00:02.1]} 34. Qg8+ {[%clk 0:00:44]} 34... Kh6 {[%clk 0:00:02.1]} 35. Qe6
{[%clk 0:00:40.8]} 35... Nf6 {[%clk 0:00:02]} 36. Rd1 {[%clk 0:00:33.5]} 36...
Qa5 {[%clk 0:00:01.5]} 37. Rcc1 {[%clk 0:00:18.6]} 37... Qb4 {[%clk 0:00:01.2]}
38. Ra1 {[%clk 0:00:18.1]} 38... Qf4 {[%clk 0:00:01.1]} 39. g3 {[%clk 0:00:18]}
39... Qf3 {[%clk 0:00:01.6]} 40. Re1 {[%clk 0:00:13]} 40... Bxg3 {[%clk
0:00:01.2]} 41. Qe3+ {[%clk 0:00:12.3]} 41... Qxe3 {[%clk 0:00:01.3]} 42. Rxe3
{[%clk 0:00:13.2]} 42... Bd6 {[%clk 0:00:02.2]} 43. Rxa6 {[%clk 0:00:12.4]}
43... Nd5 {[%clk 0:00:02.9]} 44. Rb3 {[%clk 0:00:12.3]} 44... b4 {[%clk
0:00:03.2]} 45. Kg2 {[%clk 0:00:12.2]} 45... Nf4+ {[%clk 0:00:03.2]} 46. Kf3
{[%clk 0:00:10.1]} 46... Ne6 {[%clk 0:00:02.4]} 47. Rxd6 {[%clk 0:00:08.1]}
47... exd6 {[%clk 0:00:02.2]} 48. Rxb4 {[%clk 0:00:08.8]} 48... Kg7 {[%clk
0:00:02]} 49. Ke4 {[%clk 0:00:08.1]} 49... Kf6 {[%clk 0:00:02.3]} 50. Kd5 {[%clk
0:00:07.7]} 50... Nc7+ {[%clk 0:00:02.4]} 51. Kxd6 {[%clk 0:00:07.1]} 51... Ne8+
{[%clk 0:00:03.3]} 52. Kd5 {[%clk 0:00:07.5]} 52... Ng7 {[%clk 0:00:04.2]} 53.
Ke4 {[%clk 0:00:07.6]} 53... Nf5 {[%clk 0:00:05.1]} 54. Rb6+ {[%clk 0:00:07.3]}
54... Kg5 {[%clk 0:00:05.7]} 55. Ra6 {[%clk 0:00:04.3]} 55... Kh4 {[%clk
0:00:06]} 56. Ra3 {[%clk 0:00:02.6]} 56... Nd6+ {[%clk 0:00:05.9]} 57. Ke5
{[%clk 0:00:02.6]} 57... Nc4+ {[%clk 0:00:06.4]} 58. Kf6 {[%clk 0:00:03.2]}
58... Nxa3 {[%clk 0:00:07.3]} 59. Kg7 {[%clk 0:00:03.9]} 59... h5 {[%clk
0:00:07.1]} 60. Kxg6 {[%clk 0:00:04]} 60... Nc4 {[%clk 0:00:08]} 61. f4 {[%clk
0:00:04.2]} 61... Ne3 {[%clk 0:00:07.6]} 62. Kh6 {[%clk 0:00:02.7]} 62... Nf5+
{[%clk 0:00:07.5]} 63. Kg6 {[%clk 0:00:03.2]} 63... Ng3 {[%clk 0:00:08]} 64. f5
{[%clk 0:00:02.3]} 64... Nxf5 {[%clk 0:00:08.5]} 65. Kxf5 {[%clk 0:00:03.2]}
65... Kxh3 {[%clk 0:00:09]} 66. Kf4 {[%clk 0:00:03.9]} 66... h4 {[%clk
0:00:08.2]} 67. Kf3 {[%clk 0:00:04.1]} 67... Kh2 {[%clk 0:00:08.9]} 68. Kf2
{[%clk 0:00:05]} 68... Kh3 {[%clk 0:00:09.4]} 69. Kf1 {[%clk 0:00:05.9]} 69...
Kh2 {[%clk 0:00:09.9]} 70. Kf2 {[%clk 0:00:06.3]} 70... Kh1 {[%clk 0:00:10.5]}
71. Kf1 {[%clk 0:00:06.6]} 71... h3 {[%clk 0:00:11.4]} 72. Kf2 {[%clk
0:00:07.5]} 72... h2 {[%clk 0:00:12.1]} 73. Kf1 {[%clk 0:00:07.9]} 1/2-1/2

[Event "Late-Titled-Tuesday-Blitz-February-13-2024"]
[Site "Chess.com"]
[Date "2024.02.13"]
[Round "2"]
[White "lucasran"]
[Black "Jahonas"]
[Result "1-0"]
[WhiteElo "2667"]
[BlackElo "2365"]
[TimeControl "180+1"]
[EndTime "14:19:00 PST"]
[Termination "lucasran won by resignation"]

1. Nf3 {[%clk 0:03:00.9]} 1... d5 {[%clk 0:02:58.8]} 2. d4 {[%clk 0:03:00.4]}
2... Nf6 {[%clk 0:02:59]} 3. c4 {[%clk 0:03:00.1]} 3... c6 {[%clk 0:02:58.6]} 4.
e3 {[%clk 0:02:59.9]} 4... Bg4 {[%clk 0:02:58.3]} 5. Qb3 {[%clk 0:02:55]} 5...
Qb6 {[%clk 0:02:57.9]} 6. Nc3 {[%clk 0:02:51.9]} 6... e6 {[%clk 0:02:57.3]} 7.
Ne5 {[%clk 0:02:45.4]} 7... Bf5 {[%clk 0:02:55.2]} 8. Be2 {[%clk 0:02:41.2]}
8... h5 {[%clk 0:02:40.4]} 9. Bd2 {[%clk 0:02:31]} 9... Nbd7 {[%clk 0:02:39.5]}
10. Nxd7 {[%clk 0:02:29.4]} 10... Nxd7 {[%clk 0:02:38.5]} 11. Na4 {[%clk
0:02:23.3]} 11... Qxb3 {[%clk 0:02:26]} 12. axb3 {[%clk 0:02:22.6]} 12... Bc2
{[%clk 0:02:25.2]} 13. Bd1 {[%clk 0:02:21.9]} 13... Bd3 {[%clk 0:02:18.3]} 14.
c5 {[%clk 0:02:17]} 14... e5 {[%clk 0:02:11.9]} 15. b4 {[%clk 0:02:04.8]} 15...
Bb5 {[%clk 0:02:06.2]} 16. Nc3 {[%clk 0:02:04.1]} 16... a6 {[%clk 0:02:00.3]}
17. Nxb5 {[%clk 0:02:01.7]} 17... cxb5 {[%clk 0:01:59.8]} 18. Bb3 {[%clk
0:01:58.6]} 18... exd4 {[%clk 0:01:43.6]} 19. Bxd5 {[%clk 0:01:35.3]} 19...
O-O-O {[%clk 0:01:41.4]} 20. Bxf7 {[%clk 0:01:15.8]} 20... dxe3 {[%clk
0:01:27.8]} 21. Bxe3 {[%clk 0:01:16.7]} 21... Be7 {[%clk 0:01:10.8]} 22. Be6
{[%clk 0:01:11.4]} 22... Bf6 {[%clk 0:01:02.1]} 23. O-O-O {[%clk 0:01:10.1]}
23... Rhe8 {[%clk 0:00:58.6]} 24. Bh3 {[%clk 0:01:01]} 24... Kc7 {[%clk
0:00:43.9]} 25. Rd5 {[%clk 0:00:25.1]} 25... Ne5 {[%clk 0:00:40.8]} 26. Rhd1
{[%clk 0:00:23.9]} 26... Rxd5 {[%clk 0:00:39.4]} 27. Rxd5 {[%clk 0:00:23.2]}
27... Rd8 {[%clk 0:00:30.9]} 28. Rxd8 {[%clk 0:00:22.5]} 28... Kxd8 {[%clk
0:00:30]} 29. Kc2 {[%clk 0:00:22.9]} 29... Nc4 {[%clk 0:00:28.9]} 30. Bc1 {[%clk
0:00:23.1]} 30... g5 {[%clk 0:00:27.6]} 31. Be6 {[%clk 0:00:21.5]} 31... Ne5
{[%clk 0:00:26.9]} 32. Bd5 {[%clk 0:00:21.4]} 32... Nc6 {[%clk 0:00:25.3]} 33.
Bd2 {[%clk 0:00:17.2]} 33... Kd7 {[%clk 0:00:23.5]} 34. h3 {[%clk 0:00:16.4]}
34... h4 {[%clk 0:00:23]} 35. Kd3 {[%clk 0:00:15.4]} 35... Ne5+ {[%clk 0:00:17]}
36. Ke4 {[%clk 0:00:12.6]} 36... Nc6 {[%clk 0:00:16.2]} 37. b3 {[%clk
0:00:12.3]} 37... Be7 {[%clk 0:00:14.1]} 38. Kf5 {[%clk 0:00:11.5]} 38... a5
{[%clk 0:00:14]} 39. bxa5 {[%clk 0:00:07.9]} 39... Bxc5 {[%clk 0:00:13]} 40. f3
{[%clk 0:00:06.2]} 40... Be7 {[%clk 0:00:09.9]} 41. Bxg5 {[%clk 0:00:04.8]}
41... Nd4+ {[%clk 0:00:10]} 42. Ke4 {[%clk 0:00:04.2]} 42... Bxg5 {[%clk
0:00:08.4]} 43. Kxd4 {[%clk 0:00:04.5]} 43... Bd2 {[%clk 0:00:08.8]} 44. Kc5
{[%clk 0:00:03]} 44... Bxa5 {[%clk 0:00:06.2]} 45. Kxb5 {[%clk 0:00:03.3]} 45...
Bd2 {[%clk 0:00:06.2]} 46. Bxb7 {[%clk 0:00:03.3]} 46... Kd6 {[%clk 0:00:06.5]}
47. Be4 {[%clk 0:00:03.5]} 47... Be3 {[%clk 0:00:05.6]} 48. Kc4 {[%clk
0:00:03.5]} 48... Bf2 {[%clk 0:00:04.8]} 49. Kd3 {[%clk 0:00:04]} 49... Ke5
{[%clk 0:00:05]} 50. Ke2 {[%clk 0:00:04.2]} 50... Bc5 {[%clk 0:00:04.9]} 51. Bc6
{[%clk 0:00:02.6]} 51... Bd4 {[%clk 0:00:04.5]} 52. b4 {[%clk 0:00:02.7]} 52...
Bb6 {[%clk 0:00:04.5]} 53. b5 {[%clk 0:00:03.6]} 53... Bc5 {[%clk 0:00:04.3]}
54. Kd3 {[%clk 0:00:03.8]} 54... Bb6 {[%clk 0:00:04]} 55. Kc4 {[%clk 0:00:04.1]}
55... Kd6 {[%clk 0:00:03.7]} 56. Ba8 {[%clk 0:00:03.3]} 56... Ke5 {[%clk
0:00:04]} 57. Bb7 {[%clk 0:00:02.8]} 57... Ba7 {[%clk 0:00:04.3]} 58. Kb4 {[%clk
0:00:02]} 58... Bb6 {[%clk 0:00:04.8]} 59. Ka4 {[%clk 0:00:02.5]} 59... Kd4
{[%clk 0:00:05]} 60. Bc6 {[%clk 0:00:02.7]} 60... Kc5 {[%clk 0:00:05.1]} 61. f4
{[%clk 0:00:03]} 61... Kd4 {[%clk 0:00:04.7]} 62. f5 {[%clk 0:00:03.9]} 62...
Ke5 {[%clk 0:00:05.1]} 63. Bd7 {[%clk 0:00:04.3]} 63... Kd6 {[%clk 0:00:05.1]}
64. Be6 {[%clk 0:00:05.2]} 64... Ke5 {[%clk 0:00:05.5]} 65. Kb4 {[%clk
0:00:05.6]} 65... Ba7 {[%clk 0:00:05.2]} 66. Kc4 {[%clk 0:00:06.5]} 66... Bb6
{[%clk 0:00:05.6]} 67. Kd3 {[%clk 0:00:06.1]} 67... Kf4 {[%clk 0:00:05.4]} 68.
Ke2 {[%clk 0:00:06.1]} 68... Ke5 {[%clk 0:00:05.5]} 69. Kf3 {[%clk 0:00:06.3]}
69... Bd8 {[%clk 0:00:06.2]} 70. Kg4 {[%clk 0:00:06.3]} 70... Kd6 {[%clk
0:00:06.4]} 71. Kh5 {[%clk 0:00:06.1]} 71... Ke5 {[%clk 0:00:06.8]} 72. Kg6
{[%clk 0:00:06.2]} 72... Kd6 {[%clk 0:00:06.6]} 73. Bf7 {[%clk 0:00:05.4]} 73...
Ke7 {[%clk 0:00:06.7]} 74. Bd5 {[%clk 0:00:05.6]} 74... Bb6 {[%clk 0:00:05.8]}
75. Bc6 {[%clk 0:00:06.5]} 75... Bc7 {[%clk 0:00:05.1]} 76. f6+ {[%clk
0:00:06.7]} 76... Kf8 {[%clk 0:00:05.5]} 77. f7 {[%clk 0:00:07.6]} 77... Bd8
{[%clk 0:00:05.7]} 78. Be8 {[%clk 0:00:07.5]} 78... Ke7 {[%clk 0:00:03.7]} 79.
Kg7 {[%clk 0:00:07.6]} 79... Kd6 {[%clk 0:00:03.9]} 80. f8=Q+ {[%clk 0:00:07.5]}
80... Kc7 {[%clk 0:00:04.8]} 81. Qf7+ {[%clk 0:00:07.6]} 1-0